Workbook

Sheet Daten (hidden)
F9: Gesamtemission [Tonnen CO2 pro Jahr]:
F10: persönlicher Wert: | G10: =SUM(E21,F70,F81,F103,F112) -> 10.78 | H10: ="["&TEXT(Berechnung!BS13*100,"0")&" % ]" -> [99 % ]
F11: durchschnittlicher Wert in Deutschland: | G11: 11
F12: durchschnittlicher Wert in West-Europa: | G12: 10
F13: weltweiter Durchschnitt: | G13: 4.3
F14: durchschnittlicher Wert in den USA: | G14: 20
F15: durchschnittlicher Wert in Afrika: | G15: 1.3
B16: Das rechte Bild symbolisiert den persönlichen Fußabdruck im Vergleich zum Durchschnitt Deutschlands
B19: Wohnsituation
E20: persönlicher Wert: | H20: Durchschnitt in Deutschland
D21: Summe Wohnen | E21: =SUM(E22:E23) -> 2.72 | H21: =Berechnung!BT6 -> 2.72
D22: Wärmeenergie | E22: =Berechnung!L5/1000 -> 2.02
D23: Elektroenergie | E23: =Berechnung!L6/1000 -> 0.7
C25: Wohnung
D26: Anzahl der Personen im Haushalt:
D27: Wohnfläche:
C31: Wärmebedarf
C32: Schätzung
D33: Heizungsart und Gebäudezustand
D37: mittlere Raumtemperatur | E37: 20
D38: während der Heizperiode:
D40: Warmwasserverbrauch
C44: Oder: Direkte Eingabe der verbrauchten Energie für Raumwärme und Warmwasser
D46: Heizölverbrauch | F46: Kilowattstunden pro Jahr | K46: Liter pro Jahr | L46: Kubikmeter pro Jahr
D47: Erdgasverbrauch | F47: Kilowattstunden pro Jahr | K47: Kilowattstunden pro Jahr | L47: Kilowattstunden pro Jahr
D48: Fernwärmeverbrauch | F48: =K47 -> Kilowattstunden pro Jahr
C50: Elektroenergiebedarf
C51: Schätzung
C53: Nutzung von Elektrogeräten im Haushalt
D55: Ausstattung mit Elektrogeräten:
D57: Energieeffizienz:
D59: Grad der Nutzung:
C61: Oder: Direkte Eingabe der verbrauchten Elektroenergie
E63: Elektroenergieverbrauch | G63: =$K$47 -> Kilowattstunden pro Jahr
E65: bei Nutzung von Photovoltaik - Einspeisung in das Stromnetz: | G65: =$K$47 -> Kilowattstunden pro Jahr
B68: Ernährung
F70: =Berechnung!$L$63/1000 -> 1.55 | H70: =Berechnung!L64/1000 -> 1.65
D72: Geschlecht:
D74: Ernährungsform:
D76: Ernährungsweise:
B79: Verkehr
E81: Summe Verkehr | F81: =SUM(F82:F84) -> 2.52 | H81: =SUM(H82:H84) -> 2.52
E82: PKW | F82: =Berechnung!L50/1000 -> 1.56 | H82: =Berechnung!L53/1000 -> 1.56
E83: ÖPNV | F83: =Berechnung!L51/1000 -> 0.11 | H83: =Berechnung!L54/1000 -> 0.11
E84: Flüge | F84: =Berechnung!L52/1000 -> 0.85 | H84: =Berechnung!L55/1000 -> 0.85
G86: im Jahr gefahrene Km:
D87: 1. Privat-PKW:
D89: 2. Privat-PKW:
D91: ÖPNV (Pendelverkehr):
D93: Bahnreisen:
C95: Flüge [Hin- und Rückflug zählen als ein Flug] | G95: Anzahl der Flüge:
D96: 1. Flugvariante:
D98: 2. Flugvariante:
B101: Konsumgewohnheiten
F103: =Berechnung!L75/1000 -> 2.75 | H103: =Berechnung!L76/1000 -> 2.75
D105: Konsumverhalten:
D107: Kaufkriterien:
B110: öffentlicher Konsum, Infrastruktur
F112: =Berechnung!L87/1000 -> 1.24 | H112: =F112 -> 1.24

Sheet Berechnung (hidden)
A2: Datenübernahme und -übergabe | J2: Berechnungen | AA2: Quellen | BP2: Diagramm und Script
B3: Wohnen | K3: Wohnen | AB3: Quellenangaben | BQ3: Datenbereich für Diagramm
B4: Wärme - Datenaufbereitung | K4: Rechenergebnisse aufbereitet, Übergabe an Auswertung
C5: Anzahl Personen | D5: =Daten!E26 -> 0 | E5: Datenübernahme | K5: Gesamt Wärme (Heizung und WW) - Ergebnis und Übertrag | L5: =IF(N17<>0,N17,P24+L28) -> 2020 | M5: kg pro Person und Jahr | AB5: Idee für die Gestaltung dieses Rechners beruht auf: | AF5: http://www.energiesystem.de/Auswahl/Kompetenzen/Elektro/Stromkosten/Stromverbrauch/a_Stromverbrauch.gif | BS5: persönlicher CO2-Abdruck | BT5: Mittelwert Deutschland
C6: Wohnfläche | D6: =Daten!E27 -> 0 | E6: Datenübernahme | G6: CO2-Index | K6: Gesamt Elektro - Ergebnis und Übertrag | L6: =IF(D41=TRUE,0,IF(L32<>0,IF(D5=0,0,(L32-L33)/D5),L31))*AD35 -> 700 | M6: kg pro Person und Jahr | AB6: Persönliche Energie und CO2-Bilanz V. 1.1 | AT6: Techem-Studie | BR6: Wohnen | BS6: =(L5+L6)/1000 -> 2.72 | BT6: 2.72
C7: Heizungsart | D7: 3 | E7: 1 | F7: Öl- bzw. Kohleheizung | G7: 0.27 | K7: Mittelwert D Heizung und Warmwasser | L7: 2020 | AB7: © Christoph Schlumpf | BR7: Ernährung | BS7: =L63/1000 -> 1.55 | BT7: =L64/1000 -> 1.65
E8: 2 | F8: Gasheizung | G8: 0.2 | K8: Mittelwert D Elektro | L8: 700 | AB8: EAWAG, Ueberlandstr. 133, CH-8600 Dübendorf | BR8: Verkehr | BS8: =SUM(L50,L51,L52)/1000 -> 2.52 | BT8: =SUM(L53,L54,L55)/1000 -> 2.52
E9: 3 | F9: Fernwärme | G9: 0.225 | K9: Berechnung Heizung | BR9: Konsum | BS9: =L75/1000 -> 2.75 | BT9: =L76/1000 -> 2.75
E10: 4 | F10: Wärmepumpe | G10: 0.514 | H10: (Strommix für Wärmepumpe) | N10: direkte Eingabe von Verbrauchswerten Heizung und Warmwasser - Umrechnung in CO2 | BR10: öffentliche Infrastruktur | BS10: =L87/1000 -> 1.24 | BT10: =BS10 -> 1.24
E11: 5 | F11: Holz (-Pellets) | G11: 0.01 | L11: Wert | M11: CO2-Index | N11: CO2 absolut | S11: passivhaus | T11: saniert, mod. | U11: n. 1980, n.s. | V11: v. 1980, n.s. | BR11: Summen für Fußabdruck: | BS11: =SUM(BS6:BS10) -> 10.78 | BT11: =SUM(BT6:BT10) -> 10.88
G12: Wichtung | K12: Heizöl [kWh] | L12: =IF(Daten!$F$46=Daten!L47,Daten!$E$46,0) -> 0 | M12: =AD40 -> 290 | N12: =M12*L12/1000 -> 0 | Q12: =F13 -> Einfamilienhaus | R12: 1 | S12: 90 | T12: 110 | U12: 170 | V12: 280
C13: Haustyp | D13: 3 | E13: 1 | F13: Einfamilienhaus | G13: 1.3 | K13: Heizöl [l] | L13: =IF(Daten!$F$46=Daten!K46,Daten!$E$46,0) -> 0 | M13: =AD43 -> 2800 | N13: =M13*L13/1000 -> 0 | Q13: =F14 -> Reihenhaus | R13: 2 | S13: 80 | T13: 100 | U13: 150 | V13: 250 | BR13: Skalierungsfaktor für Fußabdruck: | BS13: =ROUND(BS11/BT11,2) -> 0.99
E14: 2 | F14: Reihenhaus | G14: 1.1 | K14: Erdgas [kWh] | L14: =IF(Daten!$F$47=Daten!L47,Daten!$E$47,0) -> 0 | M14: =AD41 -> 190 | N14: 0 | Q14: =F15 -> Mehrfamilienhaus | R14: 3 | S14: 70 | T14: 95 | U14: 120 | V14: 200 | AB14: Berechnung Heizung und Warmwasser
E15: 3 | F15: Mehrfamilienhaus | G15: 1 | K15: Erdgas [m³] | L15: =IF(Daten!$F$47=Daten!L46,Daten!$E$47,0) -> 0 | M15: =AD45 -> 1860 | N15: 0 | AB15: Quelle: eigene Betriebskostenabrechnung 2009
G16: CO2-Index | K16: Fernwärme | L16: =Daten!E48 -> 0 | M16: 225 | N16: 0 | AC16: Heizung | AD16: Warmwasser
C17: Sanierungstyp | D17: 3 | E17: 1 | F17: Passivhaus-Standard | G17: 0.09 | N17: =SUM(N12:N16) -> 0 | AB17: Kosten gesamt | AC17: 64811 | AD17: 21627
E18: 2 | F18: saniertes Gebäude, moderne Heizung | G18: 0.42 | K18: Korrektur Haustyp: | L18: =VLOOKUP(D13,E13:G15,3,FALSE) -> 1 | P18: =D13 -> 3 | AB18: Kosten für Wohneinheit | AC18: 1210 | AD18: 230
E19: 3 | F19: unsaniert, nach 1980 erbaut | G19: 1 | K19: Korrektur Sanierungstyp: | L19: =VLOOKUP(D17,E17:G20,3,FALSE) -> 1 | P19: =D17 -> 3 | AB19: Anteil | AC19: =AC18/AC17 -> 0.01866967027 | AD19: =AD18/AD17 -> 0.01063485458
E20: 4 | F20: unsaniert, vor 1980 erbaut | G20: 1.2 | K20: Korrektur Raumtemperatur (6% je K +/- bei 20° als 1): | L20: =(D21-20)*0.06 -> 0 | AB20: Energie gesamt | AC20: 769460
C21: Raumtemperatur | D21: =Daten!E37 -> 20 | E21: Datenübernahme | K21: Grundenergieeinsatz nach Fläche (Techem): | L21: =AU51*D6 -> 0 | M21: kWh/a | O21: Energie nach LFU | P21: =VLOOKUP(P18,R12:V14,P19+1,FALSE)*D6 -> 0 | Q21: kWh/a | AB21: Anteil Heizung und WW | AC21: 0.75 | AD21: 0.25
G22: Wichtung | AB22: Energie Heizung und WW | AC22: =AC20*AC21 -> 577095 | AD22: =AC20*AD21 -> 192365
C23: Warmwasserindex | D23: 2 | E23: 1 | F23: täglich Duschen, oft Baden | G23: 1.4 | K23: Gesamt mit Korr. Haus, Sanierungszustand, Zimmertemp: | L23: =L21*L19*L18+L21*L19*L18*L20 -> 0 | M23: kWh/a | P23: =P21+L20*P21 -> 0 | Q23: kWh/a | AB23: Anteil Energie gesamt | AC23: =AC22*AC19 -> 10774.17337 | AD23: =AD22*AD19 -> 2045.773801
E24: 2 | F24: täglich Duschen, selten Baden | G24: 1.2 | K24: Gesamt Heizung - Umrechnung auf CO2 | L24: =IF(OR(D5=0,D6=0),L7,VLOOKUP(D7,E7:G11,3)*L23/D5) -> 2020 | M24: kg Co2 pro Person und Jahr | P24: =IF(OR(D5=0,D6=0),L7,VLOOKUP(D7,E7:G11,3)*P23/D5) -> 2020 | Q24: kg Co2 pro Person und Jahr | AB24: Einheiten (qm bzw. m³) | AC24: 70 | AD24: 18.7
E25: 3 | F25: täglich Duschen, nicht Baden | G25: 1 | K25: Berechnung Warmwasser | AB25: Energie pro Einheit | AC25: =AC23/AC24 -> 153.9167624 | AD25: =AD23/AD24 -> 109.3996685
E26: 4 | F26: nicht täglich Duschen | G26: 0.8 | K26: Energie für Warmwasser: | L26: =VLOOKUP(D23,E23:G26,3)*1000 -> 1200 | M26: kWh/a | AB26: MW Heizung: | AC26: =AC25 -> 153.9167624 | AD26: kWh pro Jahr und qm bei 21°
C27: Solarthermie | D27: FALSE | E27: Datenübernahme | K27: Korr Solarthermie: | L27: =IF(D27=FALSE,L26,L26*0.6) -> 1200 | M27: kWh/a | AB27: MW Warmwasser: | AC27: =AD25 -> 109.3996685 | AD27: kWh pro m³ Wasser
C28: Warmwasser elektrisch | D28: FALSE | E28: Datenübernahme | K28: Gesamt CO2 Warmwasser | L28: =IF(D5=0,0,IF(D28=TRUE,G10,VLOOKUP(D7,E7:G11,3))*L27) -> 0 | M28: kg Co2/a
B29: Haushaltsgeräte - Datenaufbereitung | K29: Berechnung Elektroenergie | O29: Schätzung Elektroenergieverbrauch in Abhängigkeit von Ausstattung, Effizienz und Nutzung
C30: Ausstattung | D30: 2 | E30: 1 | F30: gering | K30: Elektroenergie | L30: =MAX(0,FORECAST($P$30,INDEX($P$33:$W$39,0,HLOOKUP(U30,P32:W40,9),1),$O$33:$O$39)) -> 0 | M30: kWh/a | O30: Fläche: | P30: =D6 -> 0 | T30: Elektrogeräte Ausstattung und Nutzung: | U30: =L39 -> 86.4
E31: 2 | F31: durchschnittlich | K31: Elektroenergie pro Nase | L31: =IF(D5=0,L8/AD35,L30/D5) -> 1129.032258 | M31: kWh/a und Person | AB31: Quelle der Umrechnungen: http://www.greenorange.de/
E32: 3 | F32: überdurchschnittlich | K32: Elektroenergie Datenübernahme Direkteingabe | L32: =Daten!F63 -> 0 | P32: 10 | Q32: 21 | R32: 55 | S32: 88 | T32: 114 | U32: 142 | V32: 170 | W32: 195 | AB32: © Copyright 2007 Ceramix Aktiengesellschaft. Alle Rechte vorbehalten.
K33: Rückspeisung Photovoltaik Datenübernahme Direkteingabe | L33: =Daten!F65 -> 0 | O33: 60 | P33: 1521 | Q33: 1660 | R33: 1798 | S33: 1937 | T33: 2075 | U33: 2214 | V33: 2352 | W33: 2491 | AC33: Umrechnungen
C34: Effizienz | D34: 2 | E34: 1 | F34: sehr effizient (Klasse A und besser) | O34: 75 | P34: 2347 | Q34: 2597 | R34: 2846 | S34: 3096 | T34: 3345 | U34: 3595 | V34: 3844 | W34: 4000 | AB34: dt. Strommix | AC34: kWh | AD34: kg CO2
E35: 2 | F35: durchschnittlich | K35: Elektrogeräte | O35: 90 | P35: 3173 | Q35: 3534 | R35: 3894 | S35: 4255 | T35: 4615 | U35: 4976 | V35: 5336 | W35: 5550 | AC35: 1 | AD35: 0.62 | AE35: UBA CO2-Rechner im Vergleich | AH35: alt: | AI35: 5.62
K36: Wertung Ausstattung | L36: =D30*3 -> 6 | O36: 120 | P36: 4000 | Q36: 4471 | R36: 4942 | S36: 5414 | T36: 5885 | U36: 6357 | V36: 6828 | W36: 7300
C37: Nutzung | D37: 2 | E37: 1 | F37: eher geringe Nutzung | K37: Wertung Effizienz | L37: =D34*1.8 -> 3.6 | O37: 135 | P37: 4826 | Q37: 5408 | R37: 5990 | S37: 6573 | T37: 7155 | U37: 7738 | V37: 8320 | W37: 8800 | AB37: Wohnen | AD37: 2720
E38: 2 | F38: durchschnittliche Nutzung | K38: Wertung Nutzung | L38: =D37*2 -> 4 | O38: 155 | P38: 5652 | Q38: 6345 | R38: 7038 | S38: 7732 | T38: 8425 | U38: 9119 | V38: 9812 | W38: 10380 | AC38: kWh | AD38: kg Co2
E39: 3 | F39: überdurchschnittliche Nutzung | K39: Gesamtwertung | L39: =L36*L37*L38 -> 86.4 | O39: 175 | P39: 6478 | Q39: 7282 | R39: 8087 | S39: 8891 | T39: 9695 | U39: 10500 | V39: 11304 | W39: 11960 | AB39: Fernwärme | AC39: 1000 | AD39: 225 | AE39: http://www.iwr.de/re/eu/co2/co2.html | AV39: Flächen-Korrekturfaktor aus Techem-Grafik
P40: 2 | Q40: 3 | R40: 4 | S40: 5 | T40: 6 | U40: 7 | V40: 8 | W40: 9 | AB40: Heizöl | AC40: 1000 | AD40: 290 | AT40: Mehrfamilienhaus: | AU40: 17.3 | AV40: =AU40/$AU$40 -> 1
C41: Ökostrom | D41: FALSE | E41: Datenübernahme | AB41: Erdgas | AC41: 1000 | AD41: 190 | AT41: Doppelhaus | AU41: 19.5 | AV41: =AU41/$AU$40 -> 1.12716763
AC42: l | AT42: Einfamilienhaus | AU42: 22.5 | AV42: =AU42/$AU$40 -> 1.300578035
B43: Verkehr | K43: Benzin/Diesel | M43: l/100 Km | N43: CO2 / Km | AB43: Heizöl | AC43: 1000 | AD43: 2800 | AE43: http://www.iwr.de/re/eu/co2/co2.html
B44: 1. PKW | C44: Typ | D44: 3 | E44: 1 | F44: Kleinwagen (Benzin) | K44: 1 | L44: 1 | M44: 7 | N44: =IF(K44=1,$AF$50/$AC$50*M44,$AF$49/$AC$49*M44) -> 0.1652 | P44: Ergebnis 1. PKW | Q44: =VLOOKUP(D44,$L$44:$N$49,3,FALSE)*D45 -> 0 | R44: Kg CO2/a | AC44: m³ | AT44: http://www.energieanbieter-vergleichen.de/news/2009/01/30/raumtemperatur-verringern-und-energieverbrauch-senken/
C45: Km | D45: =Daten!G87 -> 0 | E45: 2 | F45: Kleinwagen (Diesel) | K45: 2 | L45: 2 | M45: 5 | N45: 0.132 | P45: Ergebnis 2. PKW | Q45: =VLOOKUP(D47,$L$44:$N$49,3,FALSE)*D48 -> 0 | R45: Kg CO2/a | AB45: Erdgas | AC45: 1000 | AD45: 1860 | AT45: Energieverbrauchs-Senkung je K Raumtemperatur: 6%
E46: 3 | F46: Mittelklasse (Benzin) | K46: 1 | L46: 3 | M46: 9 | N46: 0.2124
B47: 2. PKW | C47: Typ | D47: 1 | E47: 4 | F47: Mittelklasse (Diesel) | K47: 2 | L47: 4 | M47: 7 | N47: 0.1848 | AB47: PKW | AD47: 1560 | AT47: spez. Verbrauch:
C48: Km | D48: =Daten!G89 -> 0 | E48: 5 | F48: Oberklasse / Van (Benzin) | K48: 1 | L48: 5 | M48: 11 | N48: 0.2596 | AC48: Verbrauch pro 100 km | AD48: km | AE48: kg CO2 | AS48: =AU48/$AU$51 -> 0.09090909091 | AT48: Passivhaus | AU48: 15 | AV48: kWh/m² | AW48: http://www.effiziento.de/energieeinsparung.html
E49: 6 | F49: Oberklasse / Van (Diesel) | K49: 2 | L49: 6 | M49: 9 | N49: 0.2376 | AB49: Diesel | AC49: 10 | AD49: 10000 | AE49: 2640 | AF49: =AE49/AD49 -> 0.264 | AS49: =AU49/$AU$51 -> 0.4242424242 | AT49: Niedrigenergiehaus | AU49: 70 | AV49: kWh/m²
B50: kein PKW | D50: FALSE | K50: PKW-Nutzung - Ergebnis und Übertrag | L50: =IF(D50=TRUE,0,IF(SUM(Q44:Q45)=0,L53,SUM(Q44:Q45))) -> 1560 | M50: kg CO2/a | AB50: Benzin | AC50: 10 | AD50: 10000 | AE50: 2360 | AF50: =AE50/AD50 -> 0.236 | AT50: Fernwärme | AU50: 130 | AV50: kWh/m²
B51: ÖPNV | C51: Typ | D51: 1 | E51: 1 | F51: Straßenbahn | G51: =AD70 -> 70 | K51: ÖPNV und Bahn - Ergebnis und Übertrag | L51: =IF(D54=TRUE,0,IF(SUM(Q51:Q52)=0,L54,SUM(Q51:Q52))) -> 110 | M51: kg CO2/a | P51: Ergebnis ÖPNV | Q51: =VLOOKUP(D51,E51:G53,3)*D52/AC70 -> 0 | R51: Kg CO2/a | AB51: Autogas | AC51: 10 | AD51: 10000 | AE51: 1860 | AF51: 0.186 | AT51: Gas/Öl | AU51: 165 | AV51: kWh/m² | AW51: (Techem-Studie)
C52: Km | D52: =Daten!G91 -> 0 | E52: 2 | F52: Bus | G52: =AD71 -> 80 | K52: Flug - Ergebnis und Übertrag | L52: =IF(D56=TRUE,0,IF(SUM(Q55:Q56)=0,L55,SUM(Q55:Q56))) -> 850 | M52: kg CO2/a | P52: Ergebnis Bahn | Q52: =AD73*D55/AC73 -> 0 | R52: Kg CO2/a | AB52: Erdgas | AC52: 10 | AD52: 10000 | AE52: 2280 | AF52: 0.228
E53: 3 | F53: Zug | G53: =AD72 -> 100 | K53: Mittelwert Deutschland - PKW | L53: 1560 | M53: kg CO2/a
B54: kein ÖPNV | D54: FALSE | K54: Mittelwert Deutschland - ÖPNV und Bahn | L54: 110 | M54: kg CO2/a | AB54: Flüge | AD54: 850 | AT54: Wärmepumpe - Heizung mit Brauchwassererwärmung Fläche 135 m²
B55: Bahnreisen | C55: Km | D55: =Daten!G93 -> 0 | K55: Mittelwert Deutschland - Flug | L55: 850 | M55: kg CO2/a | P55: Ergebnis 1. Flug | Q55: =VLOOKUP(D57,$E$57:$L$61,7,FALSE)*VLOOKUP(D57,$E$57:$L$61,8,FALSE)*D58/1000 -> 0 | R55: Kg CO2/a | AD55: 10000 | AE55: 2610 | AT55: http://energie-effizientes-haus.de/energieverbrauch.php
B56: Kein Flug | D56: FALSE | K56: doppelte Entfernung | P56: Ergebnis 2. Flug | Q56: =VLOOKUP(D59,$E$57:$L$61,7,FALSE)*VLOOKUP(D59,$E$57:$L$61,8,FALSE)*D60/1000 -> 0 | R56: Kg CO2/a | AB56: Ziel | AC56: Entfernung (einfach) | AT56: Jahr | AU56: Verbrauch
B57: 1. Flug | C57: Typ | D57: 1 | E57: 1 | F57: Städteflug Europa | K57: 1700 | L57: 220 | AB57: Mallorca | AC57: 1250 | AE57: =$AE$55/$AD$55*AC57*2 -> 652.5 | AF57: =AE57/AC57 -> 0.522 | AT57: 2007 | AU57: 1835 | AV57: kWh
C58: Anzahl | D58: =Daten!G96 -> 0 | E58: 2 | F58: Mittelmeerurlaub | K58: 2500 | L58: 185 | O58: http://www.iwr.de/re/eu/co2/co2.html | AB58: Peking | AC58: 7800 | AE58: 4071.6 | AF58: =AE58/AC58 -> 0.522 | AT58: 2008 | AU58: 2000 | AV58: kWh
B59: 2. Flug | C59: Typ | D59: 2 | E59: 3 | F59: Übersee (USA, Kanada) | K59: 15000 | L59: 150 | O59: kurz | P59: 220 | Q59: je 1000 km | AB59: LA | AC59: 9300 | AE59: 4854.6 | AF59: 0.522 | AT59: 2009 | AU59: 1864 | AV59: kWh
C60: Anzahl | D60: =Daten!G98 -> 0 | E60: 4 | F60: Übersee (Asien) | K60: 18300 | L60: 150 | O60: mittel | P60: 185 | AB60: Vancouver | AC60: 8000 | AE60: 4176 | AF60: 0.522 | AT60: spezif. Verbrauch: | AU60: =AVERAGE(AU57:AU59)/135 -> 14.07160494 | AV60: kWh/m²
E61: 5 | F61: Übersee (Down under) | K61: 34800 | L61: 150 | O61: lang | P61: 150 | AB61: NY | AC61: 6200 | AE61: 3236.4 | AF61: 0.522
AB62: Washington | AC62: 6500 | AE62: 3393 | AF62: 0.522
B63: Ernährung | K63: Ernährung - Ergebnis und Übertrag: | L63: =INDEX($K$69:$P$73,D66,IF(D64=1,D71+3,D71)) -> 1550 | M63: kg CO2 pro Jahr | AB63: Tokio | AC63: 9400 | AE63: 4906.8 | AF63: 0.522 | AT63: Warmwasser
C64: Geschlecht | D64: 1 | E64: 1 | F64: weiblich | K64: Mittelwert Deutschland: | L64: 1650 | M64: kg CO2 pro Jahr | AB64: Sydney | AC64: 16500 | AE64: 8613 | AF64: 0.522 | AT64: spez. Verbrauch: | AU64: 110 | AV64: kWh/m³ Wasser
E65: 2 | F65: männlich | K65: männlich | N65: weiblich | AB65: Auckland | AC65: 18200 | AE65: 9500.4 | AF65: 0.522
C66: Ernährung | D66: 4 | E66: 1 | F66: Vegan | K66: bewusst ökologisch | L66: durchschnittlich | M66: unbewusst, kostengünstig | N66: bewusst ökologisch | O66: durchschnittlich | P66: unbewusst, kostengünstig | AB66: Singapur | AC66: 10300 | AE66: 5376.6 | AF66: 0.522 | AT66: http://www.energiesparen-im-haushalt.de/energie/bauen-und-modernisieren/modernisierung-haus/heizung-modernisieren/heizungsanlage-erneuern/gasheizung-erneuern/gasverbrauch-warmwasser.html
E67: 2 | F67: Vegetarisch | AT67: Einsparung bei Solarunterstützung 40%
E68: 3 | F68: geringer Verzehr von Fleisch und Wurst | AB68: ÖPNV | AD68: 110
E69: 4 | F69: durchschnittliche Vollwertkost | K69: 1190 | L69: 1400 | M69: 1610 | N69: 920 | O69: 1080 | P69: 1240 | AC69: km | AD69: kg CO2 | AT69: Verbrauch Warmwasser pro Person im Mittel
E70: 5 | F70: reichlicher Verzehr von Fleisch und Wurst | K70: 1260 | L70: 1480 | M70: 1700 | N70: 970 | O70: 1140 | P70: 1310 | AB70: Straba | AC70: 1000 | AD70: 70 | AT70: 40 | AU70: Liter | AW70: =AT70*0.356 -> 14.24
C71: Nahrungsauswahl | D71: 2 | E71: 1 | F71: bewusst ökologisch | K71: 1610 | L71: 1890 | M71: 2170 | N71: 1240 | O71: 1460 | P71: 1680 | AB71: NV Bus | AC71: 1000 | AD71: 80 | AT71: 800 kWh
E72: 2 | F72: durchschnittlich | K72: 1710 | L72: 2010 | M72: 2310 | N72: 1320 | O72: 1550 | P72: 1780 | AB72: NV Bahn | AC72: 1000 | AD72: 100 | AT72: 0,8 - 1 - 1,2 | AU72: Verhältnisse wenig - Durchschnitt - viel
E73: 3 | F73: unbewusst, kostengünstig | K73: 2050 | L73: 2410 | M73: 2770 | N73: 1580 | O73: 1860 | P73: 2140 | AB73: FV Bahn | AC73: 1000 | AD73: 50
AB74: Fernbus | AC74: 1000 | AD74: 30
B75: Konsumverhalten | K75: Konsum - Ergebnis und Übertrag | L75: =INDEX($K$79:$M$83,D76,D82) -> 2750 | M75: kg CO2 pro Jahr
C76: Gewohnheiten-Typ | D76: 3 | E76: 1 | F76: sehr sparsam | K76: Mittelwert Deutschland Deutschland: | L76: 2750 | M76: kg CO2 pro Jahr | AB76: Konsum | AD76: 2750
E77: 2 | F77: sparsam
E78: 3 | F78: durchschnittlich | K78: Günstiger Anschaffungspreis | L78: Bedienbarkeit und Funktionalität | M78: Qualität und Langlebigkeit
E79: 4 | F79: großzügig | K79: 2670 | L79: 2540 | M79: 2420
E80: 5 | F80: sehr großzügig | K80: 2740 | L80: 2610 | M80: 2480
K81: 2890 | L81: 2750 | M81: 2610
C82: Kriterien-Typ | D82: 2 | E82: 1 | F82: Günstiger Anschaffungspreis | K82: 3030 | L82: 2890 | M82: 2740
E83: 2 | F83: Bedienbarkeit und Funktionalität | K83: 3100 | L83: 2960 | M83: 2810
E84: 3 | F84: Qualität und Langlebigkeit
K87: öffentliche Infrastruktur - Vorgabe und Übertrag | L87: 1240 | M87: kg CO2 pro Jahr

Sheet Intro
